Workbook

Sheet Fat by %
B2: Bodyweight (kg) | F2: Only change numbers in yellow | J2: Convert lbs to kg
B3: Activity | J3: lbs | K3: kg
B4: Protein (g/kg BW) | K4: =J4/2.2 -> 0
B5: Fat %
B6: Hours training per week
C8: Maintenance | F8: Fat Loss | I8: Muscle Gain
C9: Male | D9: Female | F9: Male | G9: Female | I9: Male | J9: Female
B10: BMR | C10: =MROUND(C2*24.2, 10) -> 0 | D10: =C2*22 -> 0 | F10: =C10 -> 0 | G10: =D10 -> 0 | I10: =C10 -> 0 | J10: =D10 -> 0
B11: Kcals | C11: =MROUND(((C10*$C3) + ((($C6*(3*$C2))/7))), 10) -> 0 | D11: =MROUND(((D10*$C3) + ((($C6*(3*$C2))/7))), 10) -> 0 | F11: =MROUND(((F10*$C3) + ((($C6*(3*$C2))/7)))*0.85, 10) -> 0 | G11: =MROUND(((G10*$C3) + ((($C6*(3*$C2))/7)))*0.85, 10) -> 0 | I11: =MROUND(((I10*$C3) + ((($C6*(3*$C2))/7)))*1.1, 10) -> 0 | J11: =MROUND(((J10*$C3) + ((($C6*(3*$C2))/7)))*1.1, 10) -> 0
B12: Protein | C12: =MROUND($C4*$C2, 5) -> 0 | D12: =MROUND($C4*$C2, 5) -> 0 | F12: =MROUND($C4*$C2, 5) -> 0 | G12: =MROUND($C4*$C2, 5) -> 0 | I12: =MROUND($C4*$C2, 5) -> 0 | J12: =MROUND($C4*$C2, 5) -> 0
B13: Fat | C13: =MROUND(((C11*($C5/100)))/9, 5) -> 0 | D13: =MROUND(((D11*($C5/100)))/9, 5) -> 0 | F13: =MROUND(((F11*($C5/100)))/9, 5) -> 0 | G13: =MROUND(((G11*($C5/100)))/9, 5) -> 0 | I13: =MROUND(((I11*($C5/100)))/9, 5) -> 0 | J13: =MROUND(((J11*($C5/100)))/9, 5) -> 0
B14: Carbs | C14: =MROUND((C11-((C12*4)+(C13*9)))/4, 5) -> 0 | D14: =MROUND((D11-((D12*4)+(D13*9)))/4, 5) -> 0 | F14: =MROUND((F11-((F12*4)+(F13*9)))/4, 5) -> 0 | G14: =MROUND((G11-((G12*4)+(G13*9)))/4, 5) -> 0 | I14: =MROUND((I11-((I12*4)+(I13*9)))/4, 5) -> 0 | J14: =MROUND((J11-((J12*4)+(J13*9)))/4, 5) -> 0

Sheet Fat by BW (kg)
B2: Bodyweight (kg) | C2: 100 | F2: Only change numbers in yellow | J2: Convert lbs to kg
B3: Activity | C3: 1.2 | J3: lbs | K3: kg
B4: Protein (g/kg BW) | C4: 1.9 | J4: 200 | K4: =J4/2.2 -> 90.90909091
B5: Fat (g/kg BW) | C5: 1.1
B6: Hours training per week | C6: 1
C8: Maintenance | F8: Fat Loss | I8: Muscle Gain
C9: Male | D9: Female | F9: Male | G9: Female | I9: Male | J9: Female
B10: BMR | C10: =MROUND(C2*24.2, 10) -> 2,420 | D10: =C2*22 -> 2,200 | F10: =C10 -> 2,420 | G10: =D10 -> 2,200 | I10: =C10 -> 2,420 | J10: =D10 -> 2,200
B11: Kcals | C11: =MROUND(((C10*$C3) + ((($C6*(3*$C2))/7))), 10) -> 2,950 | D11: =MROUND(((D10*$C3) + ((($C6*(3*$C2))/7))), 10) -> 2,680 | F11: =MROUND(((F10*$C3) + ((($C6*(3*$C2))/7)))*0.85, 10) -> 2,500 | G11: =MROUND(((G10*$C3) + ((($C6*(3*$C2))/7)))*0.85, 10) -> 2,280 | I11: =MROUND(((I10*$C3) + ((($C6*(3*$C2))/7)))*1.1, 10) -> 3,240 | J11: =MROUND(((J10*$C3) + ((($C6*(3*$C2))/7)))*1.1, 10) -> 2,950
B12: Protein | C12: =MROUND($C4*$C2, 5) -> 190 | D12: =MROUND($C4*$C2, 5) -> 190 | F12: =MROUND($C4*$C2, 5) -> 190 | G12: =MROUND($C4*$C2, 5) -> 190 | I12: =MROUND($C4*$C2, 5) -> 190 | J12: =MROUND($C4*$C2, 5) -> 190
B13: Fat | C13: =MROUND($C2*$C5, 5) -> 110 | D13: =MROUND($C2*$C5, 5) -> 110 | F13: 110 | G13: 110 | I13: 110 | J13: 110
B14: Carbs | C14: =MROUND((C11-((C12*4)+(C13*9)))/4, 5) -> 300 | D14: =MROUND((D11-((D12*4)+(D13*9)))/4, 5) -> 235 | F14: =MROUND((F11-((F12*4)+(F13*9)))/4, 5) -> 190 | G14: =MROUND((G11-((G12*4)+(G13*9)))/4, 5) -> 135 | I14: =MROUND((I11-((I12*4)+(I13*9)))/4, 5) -> 375 | J14: =MROUND((J11-((J12*4)+(J13*9)))/4, 5) -> 300

Sheet Activity Multiplier

Sheet Protein Intakes
A1: © Alan Aragon, AAUKC Presentation (Hosted by Elite Fitness Mentoring)
